fUST/lending_fUST_20240724
["ID","MTS","AMOUNT","RATE_DAILY","PERIOD"]
[333057371,1721787044489,-151.0,0.00013698,2]
[333057372,1721787044500,-151.0,0.00013698,2]
[333057373,1721787044509,-159.118539,0.00013698,2]
[333057374,1721787044520,-500.0,0.00013698,2]
[333057375,1721787044530,-500.0,0.00013698,2]
[333057376,1721787044540,-500.0,0.00013698,2]
[333057377,1721787044550,-500.0,0.00013698,2]
[333057378,1721787044560,-74.92341929,0.00013698,2]
[333057478,1721787047406,-76.07658071,0.00013698,2]
[333057479,1721787047416,-151.0,0.00013698,2]
[333057482,1721787047425,-151.0,0.00013698,2]
[333057485,1721787047436,-151.0,0.00013698,2]
[333057488,1721787047450,-500.0,0.00013698,2]
[333057490,1721787047460,-500.0,0.00013698,2]
[333057493,1721787047470,-500.0,0.00013698,2]
[333057495,1721787047480,-397.50878639,0.00013698,2]
[333057530,1721787921230,-601.09979647,9.999e-05,2]
[333057531,1721787933240,-342.78895988,9.999e-05,2]
[333057532,1721787952812,-173.03012309,9.999e-05,2]
[333057533,1721787964059,-403.96548145,9.999e-05,2]
[333057534,1721787967681,-532.53627375,9.999e-05,2]
[333057535,1721787972520,-778.8042113,9.999e-05,2]
[333057536,1721787975902,-155.04455517,0.0001,2]
[333057537,1721787982698,-285.14370431,9.999e-05,2]
[333057538,1721787984077,-233.90882641,0.0001,2]
[333057539,1721787986028,-230.37770091,9.999e-05,2]
[333057540,1721787988153,-2110.07185519,9.999e-05,2]
[333057541,1721788027193,-225.04706201,0.0001,2]
[333057542,1721788027233,-4600.12293799,0.00012632,2]
[333057543,1721788036148,-4743.10566083,0.00012632,2]
[333057544,1721788042126,-2376.78893913,0.00012632,2]
[333057545,1721788049124,-4665.415681,0.00012632,2]
[333057547,1721788063852,-196.56974647,9.999e-05,2]
[333057549,1721788080356,-155.01055889,9.999e-05,2]
[333057550,1721788157875,941.73928157,9.999e-05,2]
[333057562,1721788232881,645.73243684,0.0001212,2]
[333057563,1721788233279,-8504.56678105,0.00012632,2]
[333057564,1721788233289,-200.0,0.00013425,2]
[333057565,1721788233300,-189.8763052,0.00013561,2]
[333057566,1721788233311,-599.39,0.000136,2]
[333057567,1721788233321,-157.444688,0.00013615,2]
[333057568,1721788233331,-367.39222983,0.00013619,2]
[333057569,1721788233342,-2669.2973751,0.0001365,2]
[333057570,1721788233352,-6431.21288698,0.00013688,2]
[333057571,1721788233362,-151.0,0.00013698,2]
[333057572,1721788233372,-151.0,0.00013698,2]
[333057573,1721788233382,-151.0,0.00013698,2]
[333057574,1721788233393,-151.0,0.00013698,2]
[333057575,1721788233403,-153.116593,0.00013698,2]
[333057576,1721788233413,-151.0,0.00013698,2]
[333057577,1721788233423,-151.0,0.00013698,2]
[333057578,1721788233433,-151.0,0.00013698,2]
[333057579,1721788233444,-151.0,0.00013698,2]
[333057580,1721788233454,-151.0,0.00013698,2]
[333057581,1721788233464,-151.0,0.00013698,2]
[333057582,1721788233474,-500.0,0.00013698,2]
[333057583,1721788233484,-500.0,0.00013698,2]
[333057584,1721788233494,-500.0,0.00013698,2]
[333057585,1721788233504,-500.0,0.00013698,2]
[333057586,1721788233515,-528.1,0.00013698,2]
[333057587,1721788233525,-502.62733346,0.00013698,2]
[333057588,1721788233535,-500.0,0.00013698,2]
[333057589,1721788233547,-500.0,0.00013698,2]
[333057590,1721788233558,-500.0,0.00013698,2]
[333057591,1721788233567,-500.0,0.00013698,2]
[333057592,1721788233577,-500.0,0.00013698,2]
[333057593,1721788233586,-151.0,0.00013698,2]
[333057594,1721788233596,-151.0,0.00013698,2]
[333057595,1721788233605,-151.0,0.00013698,2]
[333057596,1721788233615,-153.535158,0.00013698,2]
[333057597,1721788233625,-500.0,0.00013698,2]
[333057598,1721788233635,-584.67,0.00013698,2]
[333057599,1721788233644,-1159.64,0.00013698,2]
[333057600,1721788233654,-500.0,0.00013698,2]
[333057601,1721788233664,-654.53,0.00013698,2]
[333057602,1721788233675,-501.601106,0.00013698,2]
[333057603,1721788233685,-500.0,0.00013698,2]
[333057604,1721788233696,-500.0,0.00013698,2]
[333057605,1721788233706,-430.94304731,0.00013698,2]
[333057606,1721788233717,-500.0,0.00013698,2]
[333057607,1721788233737,-501.493631,0.00013698,2]
[333057608,1721788233749,-500.0,0.00013698,2]
[333057610,1721788233759,-500.0,0.00013698,2]
[333057612,1721788233772,-504.15270746,0.00013698,2]
[333057614,1721788233782,-500.0,0.00013698,2]
[333057616,1721788233792,-221.32708706,0.00013698,2]
[333057670,1721788238207,-280.78547857,0.00013698,2]
[333057671,1721788238218,-512.45134375,0.00013698,2]
[333057672,1721788238229,-500.0,0.00013698,2]
[333057673,1721788238240,-500.0,0.00013698,2]
[333057674,1721788238251,-500.0,0.00013698,2]
[333057675,1721788238263,-500.82326222,0.00013698,2]
[333057676,1721788238274,-501.68883554,0.00013698,2]
[333057677,1721788238283,-97.49957272,0.00013698,2]
[333057678,1721788238295,-402.50042728,0.00013698,2]
[333057679,1721788238304,-10.30249473,0.00013698,2]
[333057680,1721788238382,-493.75871277,0.00013698,2]
[333057682,1721788238393,-500.0,0.00013698,2]
[333057683,1721788238403,-500.0,0.00013698,2]
[333057684,1721788238415,-500.0,0.00013698,2]
[333057685,1721788238426,-151.0,0.00013698,2]
[333057686,1721788238437,-151.0,0.00013698,2]
[333057687,1721788238446,-153.37739,0.00013698,2]
[333057688,1721788238457,-151.0,0.00013698,2]
[333057689,1721788238468,-152.764293,0.00013698,2]
[333057690,1721788238481,-502.02542958,0.00013698,2]
[333057691,1721788238490,-179.71031802,0.00013698,2]
[333057692,1721788238502,-651.42,0.00013698,2]
[333057693,1721788238514,-501.05158254,0.00013698,2]
[333057694,1721788238524,-500.0,0.00013698,2]
[333057695,1721788238533,-133.00656285,0.00013698,2]
[333057736,1721788257120,184.04,0.00010959,2]
[333057737,1721788267987,20.59828159,0.00010959,2]
[333057738,1721788268012,163.44171841,0.00010959,2]
[333057739,1721788278535,736.21,0.00010959,2]
[333057740,1721788515287,-519.10656917,9.999e-05,2]
[333057741,1721788615602,-519.75867471,9.999e-05,2]
[333057742,1721788630922,-628.45453856,9.999e-05,2]
[333057746,1721788732539,-186.21736128,9.999e-05,2]
[333057747,1721788742824,-534.18148043,9.999e-05,2]
[333057749,1721788764119,-644.57917452,9.999e-05,2]
[333057752,1721788942434,-156.95300993,9.999e-05,2]
[333057753,1721788978803,-218.4546097,9.999e-05,2]
[333057757,1721789128940,-156.79576006,9.999e-05,2]
[333057758,1721789140690,-188.02900327,9.999e-05,2]
[333057759,1721789141322,-154.80649189,0.0001,2]
[333057760,1721789146998,-208.86320889,9.999e-05,2]
[333057761,1721789147570,-414.15637148,9.999e-05,2]
[333057762,1721789149443,-778.8042113,9.999e-05,2]
[333057763,1721789151935,-531.29167136,9.999e-05,2]
[333057764,1721789155576,-157.1558416,9.999e-05,2]
[333057765,1721789158270,-189.33829521,9.999e-05,2]
[333057766,1721789160846,-259.94436062,9.999e-05,2]
[333057767,1721789191056,-246.98587441,9.999e-05,2]
[333057768,1721789209710,-209.21027021,9.999e-05,2]
[333057769,1721789209735,-195.77076547,9.999e-05,2]
[333057770,1721789211342,-209.21027021,9.999e-05,2]
[333057772,1721789232191,-300.0,0.00011933,2]
[333057773,1721789232229,-4050.67975701,0.00011934,2]
[333057774,1721789237203,-2801.93,0.00011934,2]
[333057782,1721789351132,-300.0,0.00011933,2]
[333057783,1721789351162,-18037.39024299,0.00011934,2]
[333057784,1721789355151,-273.8168122,0.00012434,2]
[333057824,1721789433299,-248.7824838,0.00012516,2]
[333057826,1721789433310,-867.84703655,0.00013,2]
[333057977,1721789438727,-6670.73070323,0.00013,2]
[333057978,1721789438737,-200.0,0.00013425,2]
[333057980,1721789438747,-189.8763053,0.00013561,2]
[333057983,1721789438757,-300.0,0.00013565,2]
[333057985,1721789438767,-2669.29737511,0.00013566,2]
[333057987,1721789438776,-1427.52268819,0.00013598,2]
[333057989,1721789438786,-189.2308441,0.000136,2]
[333057991,1721789438795,-2002.88,0.000136,2]
[333057993,1721789438804,-168.368593,0.00013615,2]
[333057995,1721789438814,-212.384084,0.00013615,2]
[333057997,1721789438824,-313.79579181,0.00013688,2]
[333058007,1721789439121,-18.69437453,0.00013688,2]
[333058012,1721789440514,-6628.91778426,0.00013688,2]
[333058013,1721789440525,-696.14079506,0.00013689,2]
[333058014,1721789440535,-151.0,0.00013698,2]
[333058015,1721789440544,-151.0,0.00013698,2]
[333058017,1721789440554,-246.025633,0.00013698,2]
[333058019,1721789440564,-152.825725,0.00013698,2]
[333058020,1721789440574,-501.17790569,0.00013698,2]
[333058022,1721789440584,-151.0,0.00013698,2]
[333058024,1721789440594,-151.0,0.00013698,2]
[333058026,1721789440604,-151.0,0.00013698,2]
[333058027,1721789440613,-151.0,0.00013698,2]
[333058028,1721789440623,-151.0,0.00013698,2]
[333058029,1721789440632,-197.311253,0.00013698,2]
[333058030,1721789440642,-500.0,0.00013698,2]
[333058031,1721789440652,-500.0,0.00013698,2]
[333058032,1721789440661,-505.30884357,0.00013698,2]
[333058033,1721789440671,-500.0,0.00013698,2]
[333058034,1721789440681,-509.73623295,0.00013698,2]
[333058035,1721789440691,-500.0,0.00013698,2]
[333058036,1721789440700,-500.0,0.00013698,2]
[333058037,1721789440710,-638.98082995,0.00013698,2]
[333058038,1721789440720,-509.04757717,0.00013698,2]
[333058039,1721789440729,-500.0,0.00013698,2]
[333058040,1721789440740,-500.0,0.00013698,2]
[333058041,1721789440749,-500.0,0.00013698,2]
[333058042,1721789440759,-500.0,0.00013698,2]
[333058043,1721789440769,-500.0,0.00013698,2]
[333058044,1721789440779,-500.0,0.00013698,2]
[333058045,1721789440803,-500.0,0.00013698,2]
[333058046,1721789440814,-500.0,0.00013698,2]
[333058047,1721789440826,-84.75979835,0.00013698,2]
[333058080,1721789443293,-415.24020165,0.00013698,2]
[333058081,1721789443304,-500.0,0.00013698,2]
[333058082,1721789443314,-500.0,0.00013698,2]
[333058083,1721789443323,-462.31317446,0.00013698,2]
[333058090,1721789446501,-37.68682554,0.00013698,2]
[333058091,1721789446512,-500.0,0.00013698,2]
[333058092,1721789446523,-548.65500605,0.00013698,2]
[333058093,1721789446532,-500.0,0.00013698,2]
[333058094,1721789446544,-500.0,0.00013698,2]
[333058095,1721789446554,-500.0,0.00013698,2]
[333058096,1721789446564,-510.2939048,0.00013698,2]
[333058097,1721789446574,-502.46909022,0.00013698,2]
[333058098,1721789446586,-500.0,0.00013698,2]
[333058099,1721789446598,-175.49974806,0.00013698,2]
[333058100,1721789446611,-500.0,0.00013698,2]
[333058101,1721789446622,-461.39785182,0.00013698,2]
[333058102,1721789446633,-500.0,0.00013698,2]
[333058103,1721789446644,-500.0,0.00013698,2]
[333058104,1721789446655,-503.64980228,0.00013698,2]
[333058105,1721789446665,-505.01842928,0.00013698,2]
[333058106,1721789446676,-507.9105085,0.00013698,2]
[333058107,1721789446687,-510.10221023,0.00013698,2]
[333058108,1721789446699,-781.22,0.00013698,2]
[333058109,1721789446710,-500.0,0.00013698,2]
[333058110,1721789446721,-500.0,0.00013698,2]
[333058111,1721789446731,-500.0,0.00013698,2]
[333058112,1721789446741,-500.0,0.00013698,2]
[333058113,1721789446752,-500.0,0.00013698,2]
[333058114,1721789446765,-500.0,0.00013698,2]
[333058115,1721789446775,-511.73191412,0.00013698,2]
[333058116,1721789446786,-508.91895831,0.00013698,2]
[333058117,1721789446798,-500.0,0.00013698,2]
[333058118,1721789446808,-500.0,0.00013698,2]
[333058119,1721789446821,-500.0,0.00013698,2]
[333058121,1721789446832,-500.0,0.00013698,2]
[333058123,1721789446843,-1128.06,0.00013698,2]
[333058124,1721789446856,-508.80509844,0.00013698,2]
[333058125,1721789446867,-508.79545702,0.00013698,2]
[333058126,1721789446879,-1472.68,0.00013698,2]
[333058127,1721789446892,-505.28067915,0.00013698,2]
[333058128,1721789446903,-508.08730958,0.00013698,2]
[333058129,1721789446914,-534.01,0.00013698,2]
[333058130,1721789446925,-500.0,0.00013698,2]
[333058131,1721789446935,-506.99743025,0.00013698,2]
[333058132,1721789446945,-323.0012398,0.00013698,2]
[333058133,1721789446955,-500.0,0.00013698,2]
[333058134,1721789446967,-500.0,0.00013698,2]
[333058135,1721789446977,-500.0,0.00013698,2]
[333058136,1721789446986,-1655.89,0.00013698,2]
[333058137,1721789446994,-500.0,0.00013698,2]
[333058138,1721789447003,-500.0,0.00013698,2]
[333058139,1721789447012,-500.0,0.00013698,2]
[333058140,1721789447022,-500.0,0.00013698,2]
[333058141,1721789447031,-500.0,0.00013698,2]
[333058142,1721789447040,-509.3857219,0.00013698,2]
[333058143,1721789447050,-500.0,0.00013698,2]
[333058144,1721789447059,-500.0,0.00013698,2]
[333058145,1721789447068,-4194.9,0.00013698,2]
[333058146,1721789447078,-500.0,0.00013698,2]
[333058147,1721789447087,-500.0,0.00013698,2]
[333058148,1721789447096,-501.63108634,0.00013698,2]
[333058149,1721789447106,-504.69489727,0.00013698,2]
[333058150,1721789447115,-639.92,0.00013698,2]
[333058151,1721789447125,-500.0,0.00013698,2]
[333058152,1721789447134,-508.68257351,0.00013698,2]
[333058153,1721789447143,-506.50537594,0.00013698,2]
[333058154,1721789447153,-824.04,0.00013698,2]
[333058155,1721789447162,-511.19074844,0.00013698,2]
[333058156,1721789447173,-562.15025851,0.00013698,2]
[333058157,1721789447183,-500.0,0.00013698,2]
[333058158,1721789447193,-500.0,0.00013698,2]
[333058159,1721789447203,-500.0,0.00013698,2]
[333058160,1721789447215,-1823.13,0.00013698,2]
[333058161,1721789447227,-500.0,0.00013698,2]
[333058162,1721789447237,-504.94186422,0.00013698,2]
[333058163,1721789447247,-500.0,0.00013698,2]
[333058164,1721789447259,-500.0,0.00013698,2]
[333058165,1721789447269,-483.67033393,0.00013698,2]
[333058166,1721789447279,-500.0,0.00013698,2]
[333058167,1721789447289,-500.0,0.00013698,2]
[333058168,1721789447300,-504.65869646,0.00013698,2]
[333058169,1721789447311,-500.0,0.00013698,2]
[333058170,1721789447321,-508.61749102,0.00013698,2]
[333058171,1721789447330,-502.65167115,0.00013698,2]
[333058172,1721789447341,-500.0,0.00013698,2]
[333058173,1721789447352,-500.0,0.00013698,2]
[333058174,1721789447363,-500.0,0.00013698,2]
[333058175,1721789447373,-590.50391823,0.00013698,2]
[333058176,1721789447383,-500.0,0.00013698,2]
[333058177,1721789447394,-1520.42,0.00013698,2]
[333058178,1721789447405,-3178.24,0.00013698,2]
[333058179,1721789447417,-500.0,0.00013698,2]
[333058180,1721789447426,-500.0,0.00013698,2]
[333058181,1721789447438,-501.66208517,0.00013698,2]
[333058182,1721789447449,-504.73838927,0.00013698,2]
[333058183,1721789447459,-506.86964681,0.00013698,2]
[333058184,1721789447469,-1657.17,0.00013698,2]
[333058185,1721789447479,-502.90488238,0.00013698,2]
[333058186,1721789447489,-500.0,0.00013698,2]
[333058187,1721789447500,-506.38197011,0.00013698,2]
[333058188,1721789447511,-825.84,0.00013698,2]
[333058189,1721789447521,-500.0,0.00013698,2]
[333058190,1721789447532,-151.0,0.00013698,2]
[333058191,1721789447545,-228.590413,0.00013698,2]
[333058192,1721789447556,-500.0,0.00013698,2]
[333058193,1721789447567,-573.67,0.00013698,2]
[333058194,1721789447577,-516.40722256,0.00013698,2]
[333058195,1721789447586,-532.66664228,0.00013698,2]
[333058196,1721789447599,-502.57903766,0.00013698,2]
[333058197,1721789447611,-500.0,0.00013698,2]
[333058198,1721789447622,-506.98915833,0.00013698,2]
[333058199,1721789447632,-507.14909978,0.00013698,2]
[333058200,1721789447644,-614.07,0.00013698,2]
[333058201,1721789447653,-690.76,0.00013698,2]
[333058202,1721789447663,-1913.22,0.00013698,2]
[333058203,1721789447673,-505.87563239,0.00013698,2]
[333058204,1721789447684,-506.35269349,0.00013698,2]
[333058205,1721789447695,-500.0,0.00013698,2]
[333058206,1721789447707,-1233.98,0.00013698,2]
[333058207,1721789447718,-500.0,0.00013698,2]
[333058208,1721789447730,-2206.36,0.00013698,2]
[333058209,1721789447744,-500.0,0.00013698,2]
[333058210,1721789447753,-501.2481524,0.00013698,2]
[333058211,1721789447762,-509.10561057,0.00013698,2]
[333058212,1721789447771,-1455.4,0.00013698,2]
[333058213,1721789447780,-507.48085616,0.00013698,2]
[333058214,1721789447984,-151.563337,0.00013698,2]
[333058215,1721789447994,-502.44863789,0.00013698,2]
[333058216,1721789448004,-500.0,0.00013698,2]
[333058217,1721789448015,-504.32908182,0.00013698,2]
[333058218,1721789448025,-500.0,0.00013698,2]
[333058219,1721789448035,-500.0,0.00013698,2]
[333058220,1721789448046,-500.0,0.00013698,2]
[333058221,1721789448056,-500.0,0.00013698,2]
[333058222,1721789448067,-729.85,0.00013698,2]
[333058223,1721789448077,-500.0,0.00013698,2]
[333058224,1721789448086,-500.0,0.00013698,2]
[333058225,1721789448097,-158.039926,0.00013698,2]
[333058226,1721789448107,-500.0,0.00013698,2]
[333058227,1721789448117,-508.67784078,0.00013698,2]
[333058228,1721789448128,-506.05120005,0.00013698,2]
[333058229,1721789448138,-507.56077782,0.00013698,2]
[333058230,1721789448148,-500.0,0.00013698,2]
[333058231,1721789448158,-914.06,0.00013698,2]
[333058232,1721789448170,-504.82368458,0.00013698,2]
[333058233,1721789448182,-500.0,0.00013698,2]
[333058234,1721789448192,-151.0,0.00013698,2]
[333058235,1721789448202,-151.0,0.00013698,2]
[333058236,1721789448213,-151.0,0.00013698,2]
[333058237,1721789448224,-151.0,0.00013698,2]
[333058238,1721789448235,-2009.29,0.00013698,2]
[333058239,1721789448244,-151.0,0.00013698,2]
[333058240,1721789448256,-151.0,0.00013698,2]
[333058241,1721789448267,-500.0,0.00013698,2]
[333058242,1721789448277,-151.0,0.00013698,2]
[333058243,1721789448287,-151.0,0.00013698,2]
[333058244,1721789448297,-151.0,0.00013698,2]
[333058245,1721789448306,-151.0,0.00013698,2]
[333058246,1721789448318,-678.89,0.00013698,2]
[333058247,1721789448329,-151.0,0.00013698,2]
[333058248,1721789448339,-500.0,0.00013698,2]
[333058249,1721789448349,-151.0,0.00013698,2]
[333058250,1721789448360,-151.0,0.00013698,2]
[333058251,1721789448371,-151.0,0.00013698,2]
[333058252,1721789448381,-151.0,0.00013698,2]
[333058253,1721789448391,-151.0,0.00013698,2]
[333058254,1721789448403,-500.0,0.00013698,2]
[333058255,1721789448412,-211.020481,0.00013698,2]
[333058256,1721789448422,-500.0,0.00013698,2]
[333058257,1721789448432,-500.0,0.00013698,2]
[333058258,1721789448444,-2375.53,0.00013698,2]
[333058259,1721789448456,-516.36464297,0.00013698,2]
[333058260,1721789448467,-500.0,0.00013698,2]
[333058261,1721789448478,-1406.46,0.00013698,2]
[333058262,1721789448490,-506.2368156,0.00013698,2]
[333058263,1721789448500,-151.0,0.00013698,2]
[333058264,1721789448511,-151.0,0.00013698,2]
[333058265,1721789448520,-505.25442677,0.00013698,2]
[333058266,1721789448531,-1217.87,0.00013698,2]
[333058267,1721789448541,-500.0,0.00013698,2]
[333058268,1721789448551,-1844.15,0.00013698,2]
[333058269,1721789448563,-500.0,0.00013698,2]
[333058270,1721789448572,-500.0,0.00013698,2]
[333058271,1721789448582,-1506.58,0.00013698,2]
[333058272,1721789448593,-500.0,0.00013698,2]
[333058273,1721789448604,-500.0,0.00013698,2]
[333058274,1721789448615,-1640.07,0.00013698,2]
[333058275,1721789448628,-500.0,0.00013698,2]
[333058276,1721789448639,-668.8,0.00013698,2]
[333058277,1721789448649,-500.0,0.00013698,2]
[333058278,1721789448659,-1426.63,0.00013698,2]
[333058279,1721789448670,-500.0,0.00013698,2]
[333058280,1721789448682,-155.816202,0.00013698,2]
[333058281,1721789448692,-500.0,0.00013698,2]
[333058282,1721789448702,-500.0,0.00013698,2]
[333058283,1721789448712,-500.0,0.00013698,2]
[333058284,1721789448723,-500.0,0.00013698,2]
[333058285,1721789448734,-500.0,0.00013698,2]
[333058286,1721789448743,-504.99725752,0.00013698,2]
[333058287,1721789448753,-500.0,0.00013698,2]
[333058288,1721789448763,-500.0,0.00013698,2]
[333058289,1721789448774,-676.95,0.00013698,2]
[333058290,1721789448784,-505.71208595,0.00013698,2]
[333058291,1721789448795,-752.24,0.00013698,2]
[333058292,1721789448805,-500.0,0.00013698,2]
[333058293,1721789448816,-1427.475331,0.00013698,2]
[333058294,1721789448826,-500.0,0.00013698,2]
[333058295,1721789448836,-1427.475331,0.00013698,2]
[333058296,1721789448847,-1427.475331,0.00013698,2]
[333058297,1721789448858,-1427.475331,0.00013698,2]
[333058298,1721789448870,-1427.475331,0.00013698,2]
[333058299,1721789448880,-1427.475331,0.00013698,2]
[333058300,1721789448891,-1770.75,0.00013698,2]
[333058301,1721789448900,-1427.475331,0.00013698,2]
[333058302,1721789448911,-1427.475331,0.00013698,2]
[333058303,1721789448921,-1427.475331,0.00013698,2]
[333058304,1721789448932,-1427.475331,0.00013698,2]
[333058305,1721789448943,-1427.475331,0.00013698,2]
[333058306,1721789448954,-500.0,0.00013698,2]
[333058307,1721789448964,-1427.475331,0.00013698,2]
[333058308,1721789448975,-1427.475331,0.00013698,2]
[333058309,1721789448985,-1427.475331,0.00013698,2]
[333058310,1721789448996,-1427.475331,0.00013698,2]
[333058311,1721789449007,-151.0,0.00013698,2]
[333058312,1721789449018,-1427.475331,0.00013698,2]
[333058313,1721789449029,-151.0,0.00013698,2]
[333058314,1721789449040,-1427.475331,0.00013698,2]
[333058315,1721789449050,-151.0,0.00013698,2]
[333058316,1721789449059,-547.76,0.00013698,2]
[333058317,1721789449070,-1427.475331,0.00013698,2]
[333058318,1721789449080,-562.22,0.00013698,2]
[333058319,1721789449090,-151.0,0.00013698,2]
[333058320,1721789449101,-1427.475331,0.00013698,2]
[333058321,1721789449112,-151.0,0.00013698,2]
[333058322,1721789449122,-1427.475337,0.00013698,2]
[333058323,1721789449133,-151.0,0.00013698,2]
[333058324,1721789449145,-151.0,0.00013698,2]
[333058325,1721789449155,-151.0,0.00013698,2]
[333058326,1721789449165,-2560.73,0.00013698,2]
[333058327,1721789449180,-151.0,0.00013698,2]
[333058328,1721789449190,-151.0,0.00013698,2]
[333058329,1721789449201,-500.0,0.00013698,2]
[333058330,1721789449211,-262.278188,0.00013698,2]
[333058331,1721789449223,-500.0,0.00013698,2]
[333058332,1721789449234,-500.0,0.00013698,2]
[333058333,1721789449245,-500.0,0.00013698,2]
[333058334,1721789449256,-641.44706788,0.00013698,2]
[333058335,1721789449268,-605.44,0.00013698,2]
[333058336,1721789449279,-1134.56,0.00013698,2]
[333058337,1721789449291,-500.0,0.00013698,2]
[333058338,1721789449304,-502.72789632,0.00013698,2]
[333058339,1721789449320,-324.42232903,0.00013698,2]
[333058340,1721789449332,-223.66965201,0.00013698,2]
[333058341,1721789449344,-500.0,0.00013698,2]
[333058342,1721789449356,-389.60172927,0.00013698,2]
[333058343,1721789449367,-500.0,0.00013698,2]
[333058344,1721789449378,-500.0,0.00013698,2]
[333058345,1721789449391,-500.0,0.00013698,2]
[333058346,1721789449402,-500.0,0.00013698,2]
[333058347,1721789449412,-500.0,0.00013698,2]
[333058348,1721789449423,-714.6,0.00013698,2]
[333058349,1721789449434,-500.0,0.00013698,2]
[333058350,1721789449444,-650.21,0.00013698,2]
[333058351,1721789449453,-3503.62,0.00013698,2]
[333058352,1721789449465,-500.0,0.00013698,2]
[333058353,1721789449475,-503.40512471,0.00013698,2]
[333058354,1721789449486,-305.174854,0.00013698,2]
[333058355,1721789449496,-501.5015202,0.00013698,2]
[333058356,1721789449507,-305.174854,0.00013698,2]
[333058357,1721789449518,-305.174854,0.00013698,2]
[333058358,1721789449529,-1152.99,0.00013698,2]
[333058359,1721789449539,-305.174854,0.00013698,2]
[333058360,1721789449551,-305.174854,0.00013698,2]
[333058361,1721789449560,-305.174854,0.00013698,2]
[333058362,1721789449571,-500.0,0.00013698,2]
[333058363,1721789449582,-305.174854,0.00013698,2]
[333058364,1721789449594,-638.64,0.00013698,2]
[333058365,1721789449605,-305.174854,0.00013698,2]
[333058366,1721789449615,-305.174854,0.00013698,2]
[333058367,1721789449624,-305.174854,0.00013698,2]
[333058368,1721789449635,-305.174854,0.00013698,2]
[333058369,1721789449645,-791.5,0.00013698,2]
[333058370,1721789449655,-305.174854,0.00013698,2]
[333058371,1721789449667,-305.174854,0.00013698,2]
[333058372,1721789449676,-305.174854,0.00013698,2]
[333058373,1721789449687,-305.174854,0.00013698,2]
[333058374,1721789449698,-305.174854,0.00013698,2]
[333058375,1721789449708,-305.174854,0.00013698,2]
[333058376,1721789449718,-305.174854,0.00013698,2]
[333058377,1721789449731,-305.174854,0.00013698,2]
[333058378,1721789449741,-305.174849,0.00013698,2]
[333058379,1721789449753,-500.0,0.00013698,2]
[333058380,1721789449764,-1835.86,0.00013698,2]
[333058381,1721789449776,-501.16848322,0.00013698,2]
[333058382,1721789449785,-623.01,0.00013698,2]
[333058383,1721789449795,-500.0,0.00013698,2]
[333058384,1721789449808,-501.46202591,0.00013698,2]
[333058385,1721789449820,-4494.54,0.00013698,2]
[333058386,1721789449831,-500.0,0.00013698,2]
[333058387,1721789449842,-1101.72158916,0.00013698,2]
[333058388,1721789449853,-2560.18,0.00013698,2]
[333058389,1721789449864,-500.0,0.00013698,2]
[333058390,1721789449875,-500.0,0.00013698,2]
[333058391,1721789449885,-500.0,0.00013698,2]
[333058392,1721789449895,-151.0,0.00013698,2]
[333058393,1721789449906,-502.73613872,0.00013698,2]
[333058394,1721789449916,-151.0,0.00013698,2]
[333058395,1721789449928,-151.0,0.00013698,2]
[333058396,1721789449938,-151.0,0.00013698,2]
[333058397,1721789449948,-151.0,0.00013698,2]
[333058398,1721789449958,-151.0,0.00013698,2]
[333058399,1721789449967,-151.0,0.00013698,2]